bitfinex-derivatives/quotes_SOLF0:USTF0_20250505
["timestamp","ask_amount","ask_price","bid_price","bid_amount"]
[1746484741697,24.34,147.44,147.35,27.4576]
[1746484742299,6.784,147.43,147.35,27.4576]
[1746484742798,24.34,147.44,147.39,6.7853]
[1746484743004,6.7844,147.42,147.39,6.7853]
[1746484747003,6.7834,147.44,147.36,2.146]
[1746484747202,24.6,147.45,147.36,2.146]
[1746484747710,6.7841,147.43,147.4,6.785]
[1746484748210,6.7841,147.43,147.41,6.7847]
[1746484748709,6.7841,147.43,147.4,6.7851]
[1746484749203,6.7841,147.43,147.36,9.40069416]
[1746484749204,1.9685,147.48,147.39,24.6]
[1746484749409,26.5685,147.48,147.43,6.7838]
[1746484749805,6.7827,147.46,147.43,6.7838]
[1746484750211,13.555,147.57,147.44,24.6]
[1746484750506,7.25469416,147.53,147.43,24.6]
[1746484750708,7.25469416,147.53,147.45,6.7827]
[1746484750905,1.22399444,147.52,147.45,6.7827]
[1746484751097,1.22399444,147.52,147.44,24.6]
[1746484751300,6.7811,147.49,147.45,6.7826]
[1746484751502,1.22399444,147.52,147.44,24.6]
[1746484751702,6.7814,147.49,147.45,6.7827]
[1746484752309,24.6,147.54,147.45,6.7827]
[1746484752710,1.2238459,147.53,147.46,6.7824]
[1746484752911,1.2238459,147.53,147.44,24.6]
[1746484753107,24.6,147.54,147.44,24.6]
[1746484753309,24.6,147.54,147.46,6.7823]
[1746484753509,1.22381523,147.53,147.44,24.6]
[1746484754011,24.6,147.54,147.44,24.6]
[1746484754316,6.7806,147.51,147.47,6.7818]
[1746484754515,24.6,147.54,147.47,6.7818]
[1746484756113,6.7809,147.5,147.48,6.7815]
[1746484756415,6.7809,147.5,147.44,24.6]
[1746484756613,6.7809,147.5,147.47,6.7818]
[1746484756921,6.7809,147.5,147.44,24.6]
[1746484757217,6.7809,147.5,147.47,6.7816]
[1746484757406,6.7803,147.51,147.44,24.6]
[1746484758015,6.7803,147.51,147.47,6.7816]
[1746484758221,6.7799,147.52,147.44,24.6]
[1746484758615,24.6,147.54,147.44,24.6]
[1746484758815,6.78,147.52,147.44,24.6]
[1746484759213,24.6,147.54,147.48,6.7811]
[1746484759812,6.7802,147.51,147.48,6.7811]
[1746484762420,6.7802,147.51,147.49,6.7811]
[1746484763015,24.6,147.54,147.45,1.9628]
[1746484763217,26.607,147.54,147.45,1.9628]
[1746484764121,6.781,147.5,147.45,1.9628]
[1746484764821,6.781,147.5,147.46,6.7822]
[1746484765819,6.781,147.5,147.47,6.7819]
[1746484767023,6.781,147.5,147.46,24.58]
[1746484767356,26.607,147.54,147.48,6.7813]
[1746484767623,6.7805,147.51,147.47,6.7818]
[1746484767922,6.7805,147.51,147.46,24.58]
[1746484768129,6.7805,147.51,147.48,6.7812]
[1746484771022,6.7805,147.51,147.49,6.781]
[1746484773123,33.3862,147.54,147.51,6.7801]
[1746484774119,24.6,147.54,147.52,6.7793]
[1746484774327,28.6733,147.59,147.5,24.72]
[1746484774525,1.22334851,147.58,147.5,24.72]
[1746484774719,6.7778,147.57,147.54,6.7785]
[1746484774921,6.7778,147.57,147.5,24.72]
[1746484775122,30.8014,147.64,147.53,7.25469416]
[1746484775323,1.22306229,147.63,147.58,6.7769]
[1746484775721,6.7756,147.62,147.58,6.7766]
[1746484775921,30.8014,147.64,147.58,6.7766]
[1746484776123,1.22296842,147.63,147.58,6.7766]
[1746484776423,6.7758,147.61,147.58,6.7766]
[1746484776916,6.7758,147.61,147.54,28.7149]
[1746484777127,6.7761,147.6,147.54,28.7149]
[1746484777329,7.25469416,147.63,147.54,28.7149]
[1746484777528,38.05609416,147.64,147.54,28.7149]
[1746484777724,1.2229627,147.63,147.54,28.7149]
[1746484778027,1.2229627,147.63,147.56,6.7778]
[1746484778527,6.7769,147.59,147.56,6.7778]
[1746484779025,30.8014,147.64,147.54,28.7149]
[1746484779327,6.7767,147.59,147.54,28.7149]
[1746484779528,6.7767,147.59,147.56,6.7777]
[1746484781825,6.7771,147.58,147.55,6.7781]
[1746484782329,6.7771,147.58,147.54,26.7593]
[1746484782527,6.7771,147.58,147.55,6.7782]
[1746484783228,6.7775,147.57,147.54,31.4986]
[1746484783426,24.7,147.6,147.54,24.72]
[1746484784432,6.7779,147.56,147.54,24.72]
[1746484785131,6.7779,147.56,147.54,31.4987]
[1746484785332,6.7776,147.57,147.54,31.4987]
[1746484786934,6.778,147.56,147.54,24.72]
[1746484787131,24.7,147.6,147.54,24.72]
[1746484787431,7.25469416,147.59,147.51,24.7]
[1746484788034,6.7781,147.56,147.53,6.779]
[1746484789839,6.7776,147.57,147.54,6.7787]
[1746484791338,6.7772,147.58,147.55,6.7783]
[1746484791840,6.7767,147.59,147.56,6.7777]
[1746484792033,24.7,147.6,147.56,6.7777]
[1746484792342,6.777,147.58,147.56,6.7777]
[1746484792642,31.96106102,147.64,147.56,6.7777]
[1746484792940,6.777,147.58,147.56,6.7777]
[1746484794243,6.777,147.58,147.55,6.7781]
[1746484802543,7.25469416,147.63,147.55,6.7781]
[1746484802745,1.22297161,147.62,147.55,6.7781]
[1746484803045,6.7771,147.58,147.55,6.7781]
[1746484804349,7.25469416,147.63,147.53,1.0]
[1746484804646,7.25469416,147.6,147.53,1.0]
[1746484804848,6.7786,147.55,147.53,7.7792]
[1746484805747,6.778,147.56,147.54,6.7788]
[1746484806747,6.778,147.56,147.53,7.779]
[1746484806947,6.7785,147.55,147.53,1.0]
[1746484807151,1.9678,147.59,147.53,1.0]
[1746484807346,1.9678,147.59,147.53,7.779]
[1746484807537,6.7781,147.56,147.53,7.779]
[1746484808949,6.7781,147.56,147.53,1.0]
[1746484809647,6.7781,147.56,147.53,7.7792]
[1746484810749,6.7784,147.55,147.53,1.0]
[1746484812552,6.7788,147.54,147.53,1.0]
[1746484813451,6.7785,147.55,147.53,1.0]
[1746484813946,24.62,147.58,147.53,1.0]
[1746484814751,6.7788,147.54,147.53,1.0]
[1746484821055,7.25469416,147.57,147.53,1.0]
[1746484821654,24.62,147.58,147.53,1.0]
[1746484821849,31.87469416,147.58,147.53,1.0]
[1746484822848,6.7777,147.57,147.54,6.7787]
[1746484823254,6.7779,147.56,147.53,7.779]
[1746484823657,31.87469416,147.58,147.53,1.0]
[1746484823856,6.7776,147.57,147.54,6.7788]
[1746484824057,31.87469416,147.58,147.53,1.0]
[1746484825254,7.25469416,147.55,147.47,2.44415]
[1746484825455,24.64,147.54,147.47,2.44415]
[1746484825656,6.7801,147.52,147.48,6.7813]
[1746484825855,24.64,147.54,147.48,6.7813]
[1746484826261,6.7802,147.51,147.48,6.7813]
[1746484826860,6.7798,147.52,147.49,6.7809]
[1746484828867,6.7802,147.51,147.49,6.7809]
[1746484829262,24.64,147.54,147.49,6.7809]
[1746484829457,6.7799,147.52,147.49,6.7809]
[1746484829664,24.64,147.54,147.49,6.7809]
[1746484830261,6.7802,147.51,147.48,6.7813]
[1746484832069,6.7807,147.5,147.47,6.7818]
[1746484832254,24.64,147.54,147.46,24.64]
[1746484832564,6.7804,147.51,147.48,6.7815]
[1746484833663,6.7807,147.5,147.47,6.7818]
[1746484835064,6.7807,147.5,147.46,24.64]
[1746484835065,6.7807,147.5,147.48,6.7815]
[1746484837066,6.7804,147.51,147.48,6.7815]
[1746484837963,6.7807,147.5,147.48,6.7815]
[1746484839668,6.7804,147.51,147.48,6.7815]
[1746484840467,24.64,147.54,147.47,6.7819]
[1746484840669,28.6746,147.54,147.47,6.7819]
[1746484840868,28.6746,147.54,147.46,24.64]
[1746484841062,6.7804,147.51,147.48,6.7815]
[1746484841467,28.6746,147.54,147.48,6.7815]
[1746484841767,6.7806,147.5,147.48,6.7815]
[1746484842669,6.7804,147.51,147.48,6.7815]
[1746484844070,6.7806,147.5,147.48,6.7815]
[1746484844766,24.62,147.49,147.42,0.27628]
[1746484844964,24.62,147.48,147.42,0.27628]
[1746484845669,24.62,147.51,147.42,24.89628]
[1746484845861,24.62,147.51,147.44,6.7832]
[1746484846570,6.7815,147.49,147.44,6.7832]
[1746484846869,24.62,147.51,147.45,6.7828]
[1746484847172,6.7815,147.49,147.45,6.7828]
[1746484847666,6.7818,147.48,147.43,5.9699]
[1746484847871,24.62,147.51,147.43,5.9699]
[1746484848173,24.62,147.51,147.45,6.7827]
[1746484848866,6.7818,147.48,147.46,6.7823]
[1746484850474,24.62,147.51,147.45,6.7828]
[1746484851071,6.7819,147.48,147.45,6.7828]
[1746484851776,11.41933288,147.48,147.45,6.7828]
[1746484853673,4.0346,147.54,147.44,4.63743288]
[1746484853877,4.63743288,147.51,147.44,4.63743288]
[1746484854176,6.7807,147.5,147.47,6.7817]
[1746484855275,11.41853288,147.49,147.47,6.7817]
[1746484855672,6.7811,147.49,147.46,6.7822]
[1746484857370,6.7811,147.49,147.47,6.7819]
[1746484858182,6.7811,147.49,147.46,6.7822]
[1746484858580,6.7818,147.48,147.46,6.7822]
[1746484863486,6.7813,147.49,147.46,6.7822]
[1746484864988,6.7816,147.48,147.46,6.7822]
[1746484865586,7.24507177,147.52,147.46,6.7822]
[1746484865884,6.7814,147.49,147.46,6.7822]
[1746484866983,6.7823,147.47,147.43,6.9699]
[1746484867178,7.24507177,147.52,147.43,6.9699]
[1746484867384,6.7813,147.49,147.47,6.7819]
[1746484867691,26.6408,147.53,147.43,6.9699]
[1746484867890,6.7807,147.5,147.48,6.7813]
[1746484871901,6.7807,147.5,147.47,6.7818]
[1746484874097,26.6408,147.53,147.43,6.9699]
[1746484875000,7.24507177,147.52,147.43,6.9699]
[1746484875193,7.24507177,147.52,147.45,6.7827]
[1746484875702,11.41931006,147.48,147.45,6.7827]
[1746484875999,4.63751006,147.48,147.44,6.7831]
[1746484876395,6.7821,147.47,147.44,6.7831]
[1746484877706,11.41931006,147.48,147.45,6.7829]
[1746484877902,4.63751006,147.48,147.43,6.9699]
[1746484878501,6.782,147.47,147.44,6.783]
[1746484878806,4.63751006,147.48,147.43,6.9699]
[1746484879005,6.7828,147.46,147.43,7.7838]
[1746484879510,6.7814,147.49,147.44,4.63751006]
[1746484879707,6.7814,147.49,147.44,10.78371006]
[1746484879905,6.7814,147.49,147.46,6.7821]
[1746484880106,6.7808,147.5,147.44,10.78371006]
[1746484880500,6.7804,147.51,147.48,6.7813]
[1746484880806,4.0981,147.59,147.5,4.63751006]
[1746484881001,4.0981,147.59,147.51,4.63155553]
[1746484881200,11.40865553,147.58,147.51,4.63155553]
[1746484881404,4.63155553,147.58,147.51,4.63155553]
[1746484881908,4.63155553,147.58,147.55,6.7781]
[1746484882708,4.63155553,147.58,147.51,10.85805553]
[1746484883604,4.63155553,147.58,147.55,6.7779]
[1746484883811,6.7767,147.59,147.55,6.7779]
[1746484884610,31.3362,147.6,147.51,6.2265]
[1746484885511,6.7765,147.59,147.51,6.2265]
[1746484885714,6.7765,147.59,147.56,6.7776]
[1746484887721,24.56,147.6,147.57,6.7774]
[1746484889120,31.3361,147.6,147.57,6.7774]
[1746484889327,1.9754,147.63,147.54,25.68]
[1746484889526,34.09632125,147.66,147.54,25.68]
[1746484889719,6.7739,147.65,147.54,32.91682017]
[1746484890015,168.29821084,147.77,147.57,7.23682017]
[1746484890317,161.06139067,147.77,147.66,7.23682017]
[1746484890526,96.36350913,147.77,147.67,32.0232]
[1746484890709,7.23682017,147.76,147.67,32.0232]
[1746484891220,6.7704,147.73,147.67,32.0232]
[1746484891420,7.23682017,147.76,147.67,32.0232]
[1746484891719,7.23682017,147.76,147.67,29.8757]
[1746484891917,7.23682017,147.73,147.66,6.773]
[1746484892106,32.91682017,147.73,147.66,6.773]
[1746484892311,32.91682017,147.73,147.64,25.68]
[1746484892714,1.9612,147.72,147.64,25.68]
[1746484892916,3.9453,147.72,147.64,25.68]
[1746484893421,6.7726,147.68,147.62,6.7748]
[1746484893621,3.9453,147.72,147.63,6.7744]
[1746484894423,6.7727,147.68,147.63,6.7744]
[1746484895026,6.773,147.67,147.63,6.7744]
[1746484895323,3.9453,147.72,147.62,6.7749]
[1746484895526,6.7732,147.67,147.62,6.7749]
[1746484895926,6.7732,147.67,147.63,6.7746]
[1746484896132,6.7733,147.66,147.63,6.7746]
[1746484896319,11.18212017,147.72,147.61,27.618]
[1746484896619,7.23682017,147.69,147.61,34.3934]
[1746484896922,6.774,147.65,147.61,34.3934]
[1746484897328,6.7742,147.64,147.61,34.3934]
[1746484897529,7.23682017,147.69,147.61,27.618]
[1746484897920,32.89682017,147.69,147.61,27.618]
[1746484898119,32.89682017,147.69,147.61,25.66]
[1746484898524,31.1453,147.72,147.61,25.66]
[1746484898730,31.1453,147.72,147.64,6.7742]
[1746484898922,31.1453,147.72,147.61,25.66]
[1746484899121,6.7724,147.68,147.63,6.7743]
[1746484899321,27.2,147.72,147.62,7.23682017]
[1746484899722,27.2,147.75,147.63,1.9435]
[1746484899930,34.43682017,147.75,147.63,1.9435]
[1746484900229,27.2,147.75,147.67,6.7728]
[1746484900427,7.23682017,147.74,147.67,6.7728]
[1746484900730,6.7707,147.72,147.67,6.7728]
[1746484901336,7.23682017,147.74,147.66,27.2]
[1746484901728,27.2,147.75,147.66,27.2]
[1746484902029,33.9692,147.75,147.66,27.2]
[1746484902220,31.1689,147.79,147.73,6.77]
[1746484902421,38.40572017,147.79,147.73,6.77]
[1746484902617,7.23682017,147.76,147.7,27.2]
[1746484902828,14.00622017,147.75,147.7,33.9711]
[1746484903229,31.1689,147.79,147.7,27.2]
[1746484903735,7.23682017,147.75,147.7,27.2]
[1746484904025,7.23682017,147.75,147.67,2.0454]
[1746484904228,7.23682017,147.72,147.64,27.2]
[1746484904833,1.9612,147.73,147.64,27.2]
[1746484905133,6.7724,147.68,147.64,27.2]
[1746484905934,6.772,147.69,147.64,33.9739]
[1746484906134,13.52464293,147.73,147.64,27.2]
[1746484906333,2.1335,147.72,147.63,3.9827]
[1746484906526,6.773,147.67,147.63,3.9827]
[1746484906727,27.2,147.7,147.63,3.9827]
[1746484907836,6.7724,147.68,147.63,3.9827]
[1746484908549,6.7721,147.69,147.64,6.7738]
[1746484908935,6.7721,147.69,147.63,3.9827]
[1746484909138,6.7721,147.69,147.65,6.7737]
[1746484909331,6.7726,147.68,147.63,3.9827]
[1746484909837,6.7726,147.68,147.64,6.7739]
[1746484910435,6.772,147.69,147.65,6.7735]
[1746484910932,6.7725,147.68,147.65,6.7735]
[1746484911633,38.76344293,147.7,147.59,2.0308]
[1746484911840,11.57203934,147.67,147.59,2.0308]
[1746484912344,6.7741,147.65,147.59,2.0308]
[1746484912541,11.57203934,147.67,147.59,2.0308]
[1746484912843,6.7736,147.66,147.61,6.7753]
[1746484913141,11.57203934,147.67,147.61,6.7753]
[1746484914642,11.57203934,147.67,147.6,6.7757]
[1746484915343,38.77203934,147.7,147.58,28.3]
[1746484915544,38.77203934,147.7,147.59,5.9526]
[1746484915747,6.7731,147.67,147.63,6.7743]
[1746484916044,27.2,147.7,147.59,5.9526]
[1746484916356,6.7728,147.68,147.63,6.7743]
[1746484916555,27.2,147.7,147.63,6.7743]
[1746484917855,6.7729,147.67,147.63,6.7743]
[1746484918051,6.7729,147.67,147.64,6.7742]
[1746484918559,6.7729,147.67,147.63,6.7745]
[1746484919059,6.7724,147.68,147.64,6.7739]
[1746484919560,33.9715,147.7,147.66,6.773]
[1746484919964,27.2,147.7,147.66,6.773]
[1746484920856,2.1335,147.72,147.63,1.0]
[1746484921063,30.2812,147.73,147.63,1.0]
[1746484921450,6.7707,147.72,147.63,1.0]
[1746484921761,30.2812,147.73,147.63,1.0]
[1746484921963,6.7712,147.71,147.68,6.7721]
[1746484922450,28.32,147.73,147.68,6.7721]
[1746484922758,6.7708,147.72,147.69,6.7717]
[1746484924162,35.0902,147.73,147.69,6.7717]
[1746484924363,28.32,147.73,147.68,6.7722]
[1746484924564,30.4002,147.76,147.68,6.7722]
[1746484924761,6.7708,147.72,147.68,6.7722]
[1746484924963,30.4002,147.76,147.67,6.7728]
[1746484925164,6.7723,147.69,147.63,29.3]
[1746484925466,41.97223934,147.76,147.63,29.3]
[1746484925762,6.7706,147.72,147.63,29.3]
[1746484926063,41.97223934,147.76,147.68,6.7721]
[1746484926256,41.97223934,147.76,147.63,29.3]
[1746484926457,41.97223934,147.76,147.68,6.7721]
[1746484926659,41.97223934,147.76,147.63,29.3]
[1746484926857,6.7706,147.72,147.63,29.3]
[1746484927067,6.7706,147.72,147.69,6.7718]
[1746484927368,6.7703,147.73,147.69,6.7718]
[1746484927662,41.97223934,147.76,147.7,6.7711]
[1746484928165,41.97223934,147.76,147.69,6.7717]
[1746484928465,41.97223934,147.76,147.63,29.3]
[1746484928657,6.7708,147.72,147.68,6.772]
[1746484928857,6.7708,147.72,147.63,29.3]
[1746484929663,6.7708,147.72,147.69,6.7716]
[1746484930066,6.7711,147.71,147.63,29.3]
[1746484930266,6.7711,147.71,147.68,6.7719]
[1746484930467,6.7711,147.71,147.63,29.3]
[1746484930864,6.7707,147.72,147.69,6.7717]
[1746484931163,6.7707,147.72,147.63,29.3]
[1746484931661,6.7707,147.72,147.69,6.7717]
[1746484934568,6.7703,147.73,147.7,6.7713]
[1746484935468,31.5802,147.76,147.71,6.7708]
[1746484935966,6.7701,147.73,147.65,6.1397]
[1746484936269,31.5802,147.76,147.65,6.1397]
[1746484937169,6.7699,147.74,147.71,6.7707]
[1746484937373,536.36,147.87,147.68,7.22138731]
[1746484937570,31.4808,147.83,147.69,29.48]
[1746484937774,6.7677,147.79,147.75,6.7688]
[1746484938070,7.2167989,147.8,147.69,29.48]
[1746484938270,13.9839989,147.8,147.69,29.48]
[1746484938472,31.4808,147.83,147.69,29.48]
[1746484938663,7.2167989,147.82,147.69,565.8]
[1746484938969,6.7669,147.8,147.69,565.8]
[1746484939377,7.2167989,147.81,147.69,565.8]
[1746484939874,7.2167989,147.78,147.69,565.8]
[1746484940262,7.2167989,147.78,147.69,536.32]
[1746484940462,30.74,147.8,147.69,536.32]
[1746484940670,7.2167989,147.79,147.69,536.32]
[1746484940866,6.7685,147.77,147.73,6.7698]
[1746484941264,6.7685,147.77,147.69,536.32]
[1746484941265,30.74,147.8,147.69,536.32]
[1746484941465,37.9567989,147.8,147.69,536.32]
[1746484941770,30.74,147.8,147.69,536.32]
[1746484941976,6.7683,147.77,147.73,6.7697]
[1746484943479,6.7688,147.76,147.73,6.7697]
[1746484943673,30.74,147.8,147.73,6.7697]
[1746484943973,6.7678,147.78,147.73,6.7697]
[1746484944179,30.74,147.8,147.73,6.7697]
[1746484944671,30.74,147.8,147.69,536.32]
[1746484944867,30.74,147.8,147.68,30.74]
[1746484945073,6.7695,147.75,147.71,6.7709]
[1746484945275,30.74,147.8,147.71,6.7709]
[1746484945681,6.77,147.74,147.7,6.7713]
[1746484946174,6.7702,147.73,147.7,6.7713]
[1746484946368,4.0633,147.77,147.69,6.7719]
[1746484946575,30.74,147.76,147.68,30.74]
[1746484946981,30.74,147.76,147.65,36.8797]
[1746484947272,6.7706,147.72,147.68,6.772]
[1746484947474,6.7706,147.72,147.65,36.8797]
[1746484948275,6.7706,147.72,147.68,6.7721]
[1746484948972,6.771,147.71,147.68,6.7721]
[1746484949472,30.74,147.72,147.65,30.74]
[1746484949782,30.74,147.72,147.62,566.98]
[1746484950274,6.7726,147.68,147.65,6.7735]
[1746484951778,6.7729,147.67,147.64,6.774]
[1746484952272,6.7725,147.68,147.64,6.774]
[1746484952478,6.7725,147.68,147.65,6.7737]
[1746484952878,6.7725,147.68,147.64,6.774]
[1746484953377,6.7725,147.68,147.65,6.7737]
[1746484954383,6.7721,147.69,147.66,6.7732]
[1746484955278,6.7721,147.69,147.67,6.7728]
[1746484955480,30.74,147.72,147.62,566.98]
[1746484955981,6.7712,147.71,147.68,6.7721]
[1746484957581,6.7717,147.7,147.67,6.7726]
[1746484958982,6.7717,147.7,147.68,6.7723]
[1746484959783,6.7719,147.69,147.67,6.7726]
[1746484960087,6.7719,147.69,147.66,6.773]
[1746484960277,6.7724,147.68,147.66,6.773]
[1746484960477,30.74,147.72,147.66,6.773]
[1746484960978,6.7723,147.69,147.66,6.773]
[1746484961983,30.74,147.72,147.62,566.98]
[1746484962590,30.74,147.72,147.65,6.7737]
[1746484963587,6.7723,147.69,147.65,6.7737]
[1746484963784,6.7723,147.69,147.66,6.7732]
[1746484964285,7.22685098,147.71,147.68,6.7724]
[1746484964286,13.99805098,147.71,147.68,6.7724]
[1746484964492,6.7712,147.71,147.68,6.7724]
[1746484964986,37.5107,147.72,147.69,6.7719]
[1746484965178,30.74,147.72,147.62,566.98]
[1746484965382,7.22685098,147.74,147.62,566.98]
[1746484965581,6.7706,147.72,147.69,6.7716]
[1746484965784,6.7706,147.72,147.62,566.98]
[1746484965983,7.22685098,147.74,147.62,566.98]
[1746484966183,6.7717,147.7,147.67,6.7726]
[1746484966989,6.7721,147.69,147.66,6.7731]
[1746484967188,7.22685098,147.71,147.62,566.98]
[1746484967384,37.96685098,147.71,147.62,566.98]
[1746484967590,37.96685098,147.71,147.61,4.2193]
[1746484967789,2.0299,147.7,147.61,4.2193]
[1746484968391,6.7731,147.67,147.64,6.774]
[1746484968894,2.0299,147.7,147.61,4.2193]
[1746484969087,6.7724,147.68,147.65,6.7733]
[1746484969690,6.772,147.69,147.66,6.773]
[1746484971390,2.0299,147.7,147.6,30.74]
[1746484971592,2.0299,147.7,147.6,32.7009]
[1746484971792,30.74,147.71,147.6,32.7009]
[1746484971995,7.22685098,147.69,147.6,32.7009]
[1746484972585,6.7735,147.66,147.63,7.7745]
[1746484973192,7.22685098,147.69,147.63,7.7745]
[1746484973699,6.773,147.67,147.64,6.7741]
[1746484974296,6.7733,147.66,147.63,7.7745]
[1746484975194,6.7738,147.65,147.63,1.0]
[1746484975992,6.7742,147.64,147.63,1.0]
[1746484976695,6.7739,147.65,147.63,1.0]
[1746484978600,17.6315235,147.7,147.63,1.0]
[1746484979299,6.7735,147.66,147.63,7.7744]
[1746484981898,6.7735,147.66,147.64,6.7741]
[1746484982497,6.7735,147.66,147.63,7.7744]
[1746484983099,6.7737,147.65,147.63,7.7744]
[1746484983703,6.7742,147.64,147.63,1.0]
[1746484986702,11.5676235,147.64,147.57,0.36]
[1746484987301,6.7752,147.62,147.57,0.36]
[1746484987496,41.9276235,147.67,147.57,0.36]
[1746484987994,41.9276235,147.67,147.6,6.7758]
[1746484988193,41.9276235,147.67,147.57,0.36]
[1746484988395,6.7754,147.62,147.59,6.7763]
[1746484989904,6.7756,147.61,147.59,6.7763]
[1746484990103,6.7756,147.61,147.58,6.7767]
[1746484992209,6.7766,147.59,147.56,6.7777]
[1746484992902,30.38,147.63,147.57,6.7773]
[1746484993107,6.7762,147.6,147.57,6.7773]
[1746484994009,6.7762,147.6,147.58,6.7769]
[1746484995209,30.38,147.63,147.59,6.7763]
[1746484996111,6.7754,147.62,147.59,6.7763]
[1746484997514,6.7757,147.61,147.58,6.7768]
[1746484998015,7.23530116,147.62,147.54,4.1387]
[1746484998717,6.7757,147.61,147.58,6.7768]
[1746484999015,7.23530116,147.62,147.54,4.1387]
[1746484999317,14.01060116,147.62,147.59,6.7762]
[1746484999815,7.23530116,147.62,147.54,4.1387]
[1746485000010,6.7759,147.61,147.58,6.7767]
[1746485000316,7.23530116,147.62,147.58,6.7767]
[1746485000516,6.7764,147.6,147.57,6.7772]
[1746485002217,7.23530116,147.62,147.57,6.7772]
[1746485002413,30.38,147.63,147.57,6.7772]
[1746485002616,6.7764,147.6,147.57,6.7772]
[1746485002820,7.23530116,147.61,147.57,6.7772]
[1746485003222,6.7761,147.6,147.57,6.7772]
[1746485003422,7.23530116,147.61,147.54,6.7786]
[1746485003625,7.23530116,147.58,147.54,6.7786]
[1746485003922,6.7776,147.57,147.54,6.7786]
[1746485004723,6.7779,147.56,147.54,6.7786]
[1746485004924,6.7779,147.56,147.53,6.779]
[1746485005529,6.7779,147.56,147.54,6.7788]
[1746485006226,6.7776,147.57,147.54,6.7788]
[1746485006427,7.23530116,147.58,147.53,6.7788]
[1746485006832,6.7782,147.56,147.53,6.7788]
[1746485007229,6.7782,147.56,147.54,6.7788]
[1746485008429,6.7776,147.57,147.54,6.7788]
[1746485008823,14.01240116,147.58,147.55,6.7782]
[1746485010131,7.23530116,147.58,147.56,6.7777]
[1746485011130,7.23530116,147.58,147.55,6.7781]
[1746485011731,6.7775,147.57,147.55,6.7781]
[1746485012931,7.23530116,147.58,147.55,6.7781]
[1746485012932,14.01240116,147.58,147.55,6.7781]
[1746485013530,6.7775,147.57,147.55,6.7781]
[1746485013729,6.7775,147.57,147.54,6.7786]
[1746485014227,6.7772,147.58,147.5,33.2986]
[1746485014533,29.2,147.59,147.5,33.2986]
[1746485014831,29.2,147.59,147.57,6.7774]
[1746485015232,29.2,147.59,147.5,33.2986]
[1746485015432,35.9767,147.59,147.56,6.7776]
[1746485017332,6.777,147.58,147.56,6.7776]
[1746485017525,6.777,147.58,147.55,6.7781]
[1746485017725,29.2,147.59,147.55,6.7781]
[1746485018621,6.777,147.58,147.55,6.7781]
[1746485020135,6.7775,147.57,147.55,6.7781]
[1746485021435,6.7775,147.57,147.54,6.7785]
[1746485021728,6.7775,147.57,147.5,33.2986]
[1746485021934,6.7775,147.57,147.54,6.7787]
[1746485022131,6.7779,147.56,147.5,33.2986]
[1746485022335,7.23530116,147.57,147.5,33.2986]
[1746485022537,7.23530116,147.57,147.52,6.7794]
[1746485022724,6.7781,147.56,147.52,6.7794]
[1746485023037,6.7781,147.56,147.53,6.7792]
[1746485023630,7.23530116,147.57,147.5,33.2986]
[1746485024035,7.23530116,147.57,147.5,4.0986]
[1746485025039,6.779,147.54,147.51,6.7798]
[1746485025240,7.23530116,147.57,147.5,4.0986]